[Event "Titled Tuesday Blitz August 09 Late 2022"]
[White "Dounis, Alexandros"]
[Black "Mardov, Dimitar"]
[WhiteFideId "4213238"]
[BlackFideId "30919495"]
[WhiteElo "2204"]
[BlackElo "2185"]
[Result "0-1"]
[Round "04"]
[TimeControl "180+1"]
[Date "2022.08.09"]
[WhiteClock "0:00:14"]
[BlackClock "0:00:27"]

1. Nf3 {[%clk 0:03:00]}  d5 {[%clk 0:02:54]} 2. g3 {[%clk 0:03:01]}  Bg4 {[%clk 0:02:54]} 3. Bg2 {[%clk 0:03:01]}  Nd7 {[%clk 0:02:55]} 4. O-O {[%clk 0:03:01]}  e6 {[%clk 0:02:53]} 5. d3 {[%clk 0:02:55]}  c6 {[%clk 0:02:53]} 6. c4 {[%clk 0:02:55]}  Bd6 {[%clk 0:02:53]} 7. Nc3 {[%clk 0:02:53]}  Ngf6 {[%clk 0:02:54]} 8. cxd5 {[%clk 0:02:49]}  cxd5 {[%clk 0:02:52]} 9. h3 {[%clk 0:02:49]}  Bxf3 {[%clk 0:02:52]} 10. Bxf3 {[%clk 0:02:48]}  O-O {[%clk 0:02:53]} 11. Qb3 {[%clk 0:02:42]}  Nc5 {[%clk 0:02:53]} 12. Qd1 {[%clk 0:02:34]}  Rc8 {[%clk 0:02:53]} 13. Be3 {[%clk 0:02:31]}  a6 {[%clk 0:02:49]} 14. Rc1 {[%clk 0:02:31]}  Qe7 {[%clk 0:02:42]} 15. b4 {[%clk 0:02:26]}  Ncd7 {[%clk 0:02:40]} 16. a3 {[%clk 0:02:26]}  Ne5 {[%clk 0:02:37]} 17. Bg2 {[%clk 0:02:25]}  Nc6 {[%clk 0:02:36]} 18. d4 {[%clk 0:02:19]}  b5 {[%clk 0:02:33]} 19. Qd3 {[%clk 0:02:16]}  Nd7 {[%clk 0:02:29]} 20. Nxd5 {[%clk 0:01:59]}  exd5 {[%clk 0:02:27]} 21. Bxd5 {[%clk 0:02:00]}  Ncb8 {[%clk 0:02:05]} 22. Bb7 {[%clk 0:01:59]}  Rxc1 {[%clk 0:02:05]} 23. Rxc1 {[%clk 0:02:00]}  Nb6 {[%clk 0:01:55]} 24. Be4 {[%clk 0:01:45]}  g6 {[%clk 0:01:54]} 25. d5 {[%clk 0:01:32]}  Nc4 {[%clk 0:01:52]} 26. Bd4 {[%clk 0:01:31]}  Nd7 {[%clk 0:01:41]} 27. Bg2 {[%clk 0:01:13]}  Re8 {[%clk 0:01:39]} 28. e4 {[%clk 0:01:12]}  h5 {[%clk 0:01:30]} 29. f4 {[%clk 0:01:09]}  h4 {[%clk 0:01:27]} 30. e5 {[%clk 0:01:08]}  Ndxe5 {[%clk 0:01:17]} 31. fxe5 {[%clk 0:01:08]}  Bxe5 {[%clk 0:01:17]} 32. gxh4 {[%clk 0:01:00]}  Qxh4 {[%clk 0:01:14]} 33. Bf2 {[%clk 0:00:59]}  Qf4 {[%clk 0:01:09]} 34. Re1 {[%clk 0:00:53]}  Rd8 {[%clk 0:00:39]} 35. Rd1 {[%clk 0:00:38]}  Nb2 {[%clk 0:00:35]} 36. Qe2 {[%clk 0:00:35]}  Nxd1 {[%clk 0:00:35]} 37. Qxd1 {[%clk 0:00:36]}  Rc8 {[%clk 0:00:30]} 38. Qg4 {[%clk 0:00:18]}  Rc1+ {[%clk 0:00:27]} 39. Bf1 {[%clk 0:00:14]}  Qh2# {[%clk 0:00:27]} 0-1


[Site "https://www.chess.com"]

[Event "Titled Tuesday Blitz August 09 Late 2022"]
[White "Goncalves, Davi Sulzbacher"]
[Black "Clarke, Brandon G I"]
[WhiteFideId "2154510"]
[BlackFideId "400319"]
[WhiteElo "2107"]
[BlackElo "2414"]
[Result "0-1"]
[Round "04"]
[TimeControl "180+1"]
[Date "2022.08.09"]
[WhiteClock "0:00:30"]
[BlackClock "0:00:23"]

1. d4 {[%clk 0:03:00]}  Nf6 {[%clk 0:02:59]} 2. c4 {[%clk 0:02:56]}  g6 {[%clk 0:03:00]} 3. Nf3 {[%clk 0:02:56]}  Bg7 {[%clk 0:03:01]} 4. g3 {[%clk 0:02:57]}  O-O {[%clk 0:03:00]} 5. Bg2 {[%clk 0:02:58]}  d6 {[%clk 0:03:01]} 6. O-O {[%clk 0:02:58]}  c6 {[%clk 0:02:59]} 7. Nc3 {[%clk 0:02:58]}  Qa5 {[%clk 0:03:00]} 8. Qc2 {[%clk 0:02:54]}  Qh5 {[%clk 0:02:59]} 9. Re1 {[%clk 0:02:40]}  Bh3 {[%clk 0:02:59]} 10. Bh1 {[%clk 0:02:39]}  Nbd7 {[%clk 0:02:59]} 11. e4 {[%clk 0:02:33]}  Ng4 {[%clk 0:02:59]} 12. Qd3 {[%clk 0:01:42]}  e5 {[%clk 0:02:57]} 13. d5 {[%clk 0:01:34]}  Nc5 {[%clk 0:02:56]} 14. Qe2 {[%clk 0:01:35]}  cxd5 {[%clk 0:02:49]} 15. cxd5 {[%clk 0:01:34]}  f5 {[%clk 0:02:48]} 16. Ng5 {[%clk 0:01:20]}  fxe4 {[%clk 0:01:51]} 17. Ncxe4 {[%clk 0:01:07]}  Nxe4 {[%clk 0:01:46]} 18. Bxe4 {[%clk 0:01:07]}  Rxf2 {[%clk 0:01:33]} 19. Qxf2 {[%clk 0:00:54]}  Nxf2 {[%clk 0:01:33]} 20. Kxf2 {[%clk 0:00:55]}  Bf5 {[%clk 0:01:31]} 21. Bg2 {[%clk 0:00:46]}  Bh6 {[%clk 0:01:26]} 22. h4 {[%clk 0:00:44]}  Rf8 {[%clk 0:01:25]} 23. Kg1 {[%clk 0:00:39]}  Qg4 {[%clk 0:01:21]} 24. Kh2 {[%clk 0:00:38]}  Bd3 {[%clk 0:01:12]} 25. Be3 {[%clk 0:00:35]}  Bxg5 {[%clk 0:01:05]} 26. hxg5 {[%clk 0:00:35]}  Rf3 {[%clk 0:00:27]} 27. Bxf3 {[%clk 0:00:30]}  Qxf3 {[%clk 0:00:28]} 28. Bxa7 {[%clk 0:00:30]}  Be4 {[%clk 0:00:24]} 29. Rg1 {[%clk 0:00:30]}  Qh5# {[%clk 0:00:23]} 0-1


[Site "https://www.chess.com"]

[Event "Titled Tuesday Blitz August 09 Late 2022"]
[White "Grischuk, Alexander"]
[Black "Iliaguev, Nisim"]
[WhiteFideId "4126025"]
[BlackFideId "2817276"]
[WhiteElo "2762"]
[BlackElo "2107"]
[Result "0-1"]
[Round "04"]
[TimeControl "180+1"]
[Date "2022.08.09"]
[WhiteClock "0:00:22"]
[BlackClock "0:01:09"]

1. e4 {[%clk 0:03:00]}  c5 {[%clk 0:02:58]} 2. Nc3 {[%clk 0:03:00]}  Nc6 {[%clk 0:02:56]} 3. Bb5 {[%clk 0:03:00]}  Nd4 {[%clk 0:02:52]} 4. Nf3 {[%clk 0:03:00]}  a6 {[%clk 0:02:48]} 5. Bd3 {[%clk 0:02:58]}  g6 {[%clk 0:02:45]} 6. O-O {[%clk 0:02:33]}  Bg7 {[%clk 0:02:45]} 7. Re1 {[%clk 0:02:33]}  d6 {[%clk 0:02:37]} 8. Nxd4 {[%clk 0:02:30]}  cxd4 {[%clk 0:02:33]} 9. Ne2 {[%clk 0:02:30]}  Bd7 {[%clk 0:02:27]} 10. b3 {[%clk 0:02:23]}  Nf6 {[%clk 0:02:22]} 11. Bb2 {[%clk 0:02:13]}  e5 {[%clk 0:02:19]} 12. c3 {[%clk 0:02:14]}  dxc3 {[%clk 0:02:16]} 13. dxc3 {[%clk 0:02:15]}  O-O {[%clk 0:02:14]} 14. c4 {[%clk 0:02:15]}  b5 {[%clk 0:02:11]} 15. Ba3 {[%clk 0:01:40]}  Qb6 {[%clk 0:02:07]} 16. cxb5 {[%clk 0:01:31]}  axb5 {[%clk 0:02:08]} 17. Bb4 {[%clk 0:01:32]}  Rfc8 {[%clk 0:02:02]} 18. Qd2 {[%clk 0:01:23]}  d5 {[%clk 0:01:57]} 19. exd5 {[%clk 0:01:18]}  e4 {[%clk 0:01:53]} 20. Bc2 {[%clk 0:01:13]}  Ng4 {[%clk 0:01:51]} 21. Ng3 {[%clk 0:01:05]}  Nxf2 {[%clk 0:01:44]} 22. Kf1 {[%clk 0:00:50]}  Ng4 {[%clk 0:01:39]} 23. h3 {[%clk 0:00:21]}  Nh2+ {[%clk 0:01:36]} 24. Ke2 {[%clk 0:00:21]}  e3 {[%clk 0:01:21]} 25. Qd3 {[%clk 0:00:21]}  Bxa1 {[%clk 0:01:13]} 26. Rxa1 {[%clk 0:00:22]}  Qf6 {[%clk 0:01:09]} 0-1


[Site "https://www.chess.com"]

[Event "Titled Tuesday Blitz August 09 Late 2022"]
[White "Gurevich, Dmitry"]
[Black "Hambleton, Aman"]
[WhiteFideId "2000407"]
[BlackFideId "2606577"]
[WhiteElo "2506"]
[BlackElo "2538"]
[Result "0-1"]
[Round "04"]
[TimeControl "180+1"]
[Date "2022.08.09"]
[WhiteClock "0:00:19"]
[BlackClock "0:00:06"]

1. d4 {[%clk 0:03:00]}  Nf6 {[%clk 0:02:56]} 2. c4 {[%clk 0:02:58]}  e6 {[%clk 0:02:56]} 3. Nf3 {[%clk 0:02:57]}  b6 {[%clk 0:02:53]} 4. g3 {[%clk 0:02:57]}  Ba6 {[%clk 0:02:51]} 5. b3 {[%clk 0:02:57]}  Bb7 {[%clk 0:02:51]} 6. Bg2 {[%clk 0:02:57]}  Bb4+ {[%clk 0:02:51]} 7. Bd2 {[%clk 0:02:57]}  c5 {[%clk 0:02:52]} 8. O-O {[%clk 0:02:48]}  O-O {[%clk 0:02:50]} 9. a3 {[%clk 0:02:46]}  Bxd2 {[%clk 0:02:47]} 10. Qxd2 {[%clk 0:02:47]}  cxd4 {[%clk 0:02:14]} 11. Qxd4 {[%clk 0:02:46]}  Nc6 {[%clk 0:02:08]} 12. Qf4 {[%clk 0:02:44]}  d5 {[%clk 0:02:07]} 13. Rd1 {[%clk 0:02:41]}  Qe7 {[%clk 0:02:01]} 14. Nc3 {[%clk 0:02:34]}  dxc4 {[%clk 0:02:00]} 15. Qxc4 {[%clk 0:02:25]}  Rac8 {[%clk 0:01:18]} 16. Qa4 {[%clk 0:02:19]}  Na5 {[%clk 0:01:05]} 17. Qb4 {[%clk 0:02:07]}  Qxb4 {[%clk 0:01:02]} 18. axb4 {[%clk 0:02:07]}  Nxb3 {[%clk 0:01:03]} 19. Rxa7 {[%clk 0:01:35]}  Bxf3 {[%clk 0:01:02]} 20. Bxf3 {[%clk 0:01:33]}  Rxc3 {[%clk 0:01:01]} 21. Rb7 {[%clk 0:01:26]}  e5 {[%clk 0:00:40]} 22. Rxb6 {[%clk 0:01:14]}  Nd4 {[%clk 0:00:37]} 23. Kg2 {[%clk 0:01:08]}  Nxf3 {[%clk 0:00:30]} 24. exf3 {[%clk 0:01:09]}  Rcc8 {[%clk 0:00:25]} 25. Re1 {[%clk 0:01:05]}  Rfe8 {[%clk 0:00:16]} 26. Rb5 {[%clk 0:01:05]}  e4 {[%clk 0:00:14]} 27. fxe4 {[%clk 0:00:59]}  Nxe4 {[%clk 0:00:12]} 28. Re2 {[%clk 0:00:56]}  Nf6 {[%clk 0:00:07]} 29. Rxe8+ {[%clk 0:00:52]}  Rxe8 {[%clk 0:00:07]} 30. Rb7 {[%clk 0:00:52]}  g6 {[%clk 0:00:06]} 31. Kf3 {[%clk 0:00:50]}  Re1 {[%clk 0:00:04]} 32. h4 {[%clk 0:00:46]}  h5 {[%clk 0:00:05]} 33. b5 {[%clk 0:00:38]}  Rb1 {[%clk 0:00:04]} 34. Kf4 {[%clk 0:00:35]}  Kg7 {[%clk 0:00:04]} 35. f3 {[%clk 0:00:32]}  Rb4+ {[%clk 0:00:04]} 36. Ke5 {[%clk 0:00:32]}  Rb3 {[%clk 0:00:04]} 37. Kf4 {[%clk 0:00:23]}  Nd5+ {[%clk 0:00:04]} 38. Ke5 {[%clk 0:00:23]}  Nc3 {[%clk 0:00:05]} 39. b6 {[%clk 0:00:22]}  Na4 {[%clk 0:00:05]} 40. Ra7 {[%clk 0:00:20]}  Nxb6 {[%clk 0:00:05]} 41. Kd4 {[%clk 0:00:20]}  Rxf3 {[%clk 0:00:05]} 42. Rb7 {[%clk 0:00:19]}  Rxg3 {[%clk 0:00:06]} 0-1


[Site "https://www.chess.com"]

[Event "Titled Tuesday Blitz August 09 Late 2022"]
[White "Izoria, Zviad"]
[Black "Claridge-Hansen, William"]
[WhiteFideId "13601733"]
[BlackFideId "422509"]
[WhiteElo "2626"]
[BlackElo "2261"]
[Result "1/2-1/2"]
[Round "04"]
[TimeControl "180+1"]
[Date "2022.08.09"]
[WhiteClock "0:00:57"]
[BlackClock "0:01:07"]

1. Nf3 {[%clk 0:03:00]}  c5 {[%clk 0:02:59]} 2. c4 {[%clk 0:03:00]}  g6 {[%clk 0:02:58]} 3. d4 {[%clk 0:02:58]}  cxd4 {[%clk 0:02:59]} 4. Nxd4 {[%clk 0:02:58]}  Bg7 {[%clk 0:03:00]} 5. e4 {[%clk 0:02:58]}  Nc6 {[%clk 0:03:00]} 6. Be3 {[%clk 0:02:58]}  Nf6 {[%clk 0:03:01]} 7. Nc3 {[%clk 0:02:58]}  O-O {[%clk 0:03:01]} 8. Be2 {[%clk 0:02:59]}  d6 {[%clk 0:03:01]} 9. O-O {[%clk 0:02:59]}  Bd7 {[%clk 0:03:02]} 10. h3 {[%clk 0:02:58]}  Nxd4 {[%clk 0:03:01]} 11. Bxd4 {[%clk 0:02:59]}  Bc6 {[%clk 0:03:01]} 12. Qc2 {[%clk 0:02:59]}  a5 {[%clk 0:02:54]} 13. Rad1 {[%clk 0:02:59]}  a4 {[%clk 0:02:54]} 14. c5 {[%clk 0:02:58]}  Qa5 {[%clk 0:02:54]} 15. cxd6 {[%clk 0:02:56]}  exd6 {[%clk 0:02:55]} 16. a3 {[%clk 0:02:42]}  Rfe8 {[%clk 0:02:50]} 17. Bf3 {[%clk 0:02:29]}  Rac8 {[%clk 0:02:47]} 18. Qd3 {[%clk 0:02:23]}  Rcd8 {[%clk 0:02:28]} 19. Rfe1 {[%clk 0:02:20]}  d5 {[%clk 0:02:19]} 20. exd5 {[%clk 0:02:07]}  Rxe1+ {[%clk 0:02:15]} 21. Rxe1 {[%clk 0:02:08]}  Nxd5 {[%clk 0:01:46]} 22. Bxd5 {[%clk 0:01:57]}  Rxd5 {[%clk 0:01:30]} 23. Nxd5 {[%clk 0:01:06]}  Qxe1+ {[%clk 0:01:28]} 24. Kh2 {[%clk 0:01:06]}  Be5+ {[%clk 0:01:23]} 25. f4 {[%clk 0:01:05]}  Bxd5 {[%clk 0:01:07]} 26. Bxe5 {[%clk 0:01:00]}  Qe4 {[%clk 0:01:07]} 27. Qxe4 {[%clk 0:00:57]}  Bxe4 {[%clk 0:01:07]} 1/2-1/2


[Site "https://www.chess.com"]

[Event "Titled Tuesday Blitz August 09 Late 2022"]
[White "Janaszak, Dawid"]
[Black "Kravtsiv, Martyn"]
[WhiteFideId "1119206"]
[BlackFideId "14113147"]
[WhiteElo "2165"]
[BlackElo "2694"]
[Result "0-1"]
[Round "04"]
[TimeControl "180+1"]
[Date "2022.08.09"]
[WhiteClock "0:00:05"]
[BlackClock "0:00:40"]

1. e4 {[%clk 0:03:00]}  e5 {[%clk 0:02:59]} 2. Nf3 {[%clk 0:02:59]}  Nc6 {[%clk 0:02:59]} 3. d4 {[%clk 0:03:00]}  exd4 {[%clk 0:02:58]} 4. Nxd4 {[%clk 0:03:01]}  Nf6 {[%clk 0:02:58]} 5. Nxc6 {[%clk 0:03:01]}  bxc6 {[%clk 0:02:58]} 6. e5 {[%clk 0:03:01]}  Qe7 {[%clk 0:02:58]} 7. Qe2 {[%clk 0:03:02]}  Nd5 {[%clk 0:02:58]} 8. h4 {[%clk 0:03:02]}  a5 {[%clk 0:02:56]} 9. a3 {[%clk 0:02:55]}  Ba6 {[%clk 0:02:46]} 10. c4 {[%clk 0:02:54]}  Nb6 {[%clk 0:02:46]} 11. Nd2 {[%clk 0:02:21]}  O-O-O {[%clk 0:02:40]} 12. b4 {[%clk 0:02:11]}  d5 {[%clk 0:02:31]} 13. exd6 {[%clk 0:02:03]}  Rxd6 {[%clk 0:02:31]} 14. g3 {[%clk 0:01:17]}  f5 {[%clk 0:01:46]} 15. Qxe7 {[%clk 0:00:52]}  Bxe7 {[%clk 0:01:47]} 16. c5 {[%clk 0:00:50]}  Re6+ {[%clk 0:01:46]} 17. Kd1 {[%clk 0:00:51]}  Bxf1 {[%clk 0:01:46]} 18. Rxf1 {[%clk 0:00:47]}  Bf6 {[%clk 0:01:43]} 19. Ra2 {[%clk 0:00:41]}  Nd5 {[%clk 0:01:41]} 20. Bb2 {[%clk 0:00:41]}  Bxb2 {[%clk 0:01:27]} 21. Rxb2 {[%clk 0:00:41]}  axb4 {[%clk 0:01:27]} 22. axb4 {[%clk 0:00:41]}  Rd8 {[%clk 0:01:27]} 23. Kc1 {[%clk 0:00:29]}  Re2 {[%clk 0:01:26]} 24. Nc4 {[%clk 0:00:22]}  Rxb2 {[%clk 0:01:25]} 25. Nxb2 {[%clk 0:00:23]}  Nxb4 {[%clk 0:01:25]} 26. Re1 {[%clk 0:00:24]}  Rd5 {[%clk 0:01:21]} 27. Re8+ {[%clk 0:00:18]}  Kd7 {[%clk 0:01:19]} 28. Rg8 {[%clk 0:00:18]}  Rxc5+ {[%clk 0:01:18]} 29. Kd1 {[%clk 0:00:18]}  Rd5+ {[%clk 0:01:15]} 30. Ke2 {[%clk 0:00:18]}  Re5+ {[%clk 0:01:15]} 31. Kf3 {[%clk 0:00:17]}  Re7 {[%clk 0:01:16]} 32. Nc4 {[%clk 0:00:16]}  Nd5 {[%clk 0:01:14]} 33. h5 {[%clk 0:00:15]}  Nf6 {[%clk 0:01:10]} 34. Rh8 {[%clk 0:00:12]}  h6 {[%clk 0:01:08]} 35. Kg2 {[%clk 0:00:10]}  Nxh5 {[%clk 0:01:07]} 36. f4 {[%clk 0:00:11]}  c5 {[%clk 0:01:02]} 37. Ne5+ {[%clk 0:00:10]}  Ke6 {[%clk 0:01:02]} 38. Rd8 {[%clk 0:00:07]}  Nf6 {[%clk 0:00:59]} 39. Nd3 {[%clk 0:00:07]}  Ne4 {[%clk 0:00:56]} 40. Ne5 {[%clk 0:00:08]}  Nd6 {[%clk 0:00:51]} 41. Ra8 {[%clk 0:00:06]}  Kd5 {[%clk 0:00:48]} 42. Kf3 {[%clk 0:00:06]}  Re8 {[%clk 0:00:45]} 43. Ra7 {[%clk 0:00:06]}  Nb5 {[%clk 0:00:44]} 44. Ra1 {[%clk 0:00:05]}  Nd4+ {[%clk 0:00:43]} 45. Kf2 {[%clk 0:00:05]}  Rb8 {[%clk 0:00:42]} 46. Ra7 {[%clk 0:00:05]}  Rb2+ {[%clk 0:00:42]} 47. Ke3 {[%clk 0:00:05]}  Rb3+ {[%clk 0:00:42]} 48. Kd2 {[%clk 0:00:05]}  Rxg3 {[%clk 0:00:41]} 49. Rxc7 {[%clk 0:00:05]}  Ke4 {[%clk 0:00:41]} 50. Rxc5 {[%clk 0:00:05]}  Nb3+ {[%clk 0:00:40]} 0-1


[Site "https://www.chess.com"]

[Event "Titled Tuesday Blitz August 09 Late 2022"]
[White "Kevlishvili, Robby"]
[Black "Rastbod, Ali"]
[WhiteFideId "1040634"]
[BlackFideId "12567477"]
[WhiteElo "2585"]
[BlackElo "2191"]
[Result "1/2-1/2"]
[Round "04"]
[TimeControl "180+1"]
[Date "2022.08.09"]
[WhiteClock "0:00:06"]
[BlackClock "0:00:04"]

1. e4 {[%clk 0:03:00]}  c6 {[%clk 0:02:45]} 2. d4 {[%clk 0:02:55]}  d5 {[%clk 0:02:46]} 3. exd5 {[%clk 0:02:55]}  cxd5 {[%clk 0:02:47]} 4. Bd3 {[%clk 0:02:56]}  Nc6 {[%clk 0:02:47]} 5. c3 {[%clk 0:02:56]}  Nf6 {[%clk 0:02:47]} 6. Bf4 {[%clk 0:02:56]}  Bg4 {[%clk 0:02:47]} 7. Qb3 {[%clk 0:02:56]}  Qd7 {[%clk 0:02:47]} 8. Nd2 {[%clk 0:02:56]}  e6 {[%clk 0:02:47]} 9. Ngf3 {[%clk 0:02:57]}  Bd6 {[%clk 0:02:48]} 10. Bxd6 {[%clk 0:02:55]}  Qxd6 {[%clk 0:02:49]} 11. O-O {[%clk 0:02:55]}  O-O {[%clk 0:02:49]} 12. Rae1 {[%clk 0:02:56]}  Ne7 {[%clk 0:02:42]} 13. Ne5 {[%clk 0:02:53]}  Bf5 {[%clk 0:02:42]} 14. h3 {[%clk 0:02:43]}  Rab8 {[%clk 0:02:40]} 15. Re2 {[%clk 0:02:32]}  b5 {[%clk 0:02:39]} 16. a3 {[%clk 0:02:25]}  Bxd3 {[%clk 0:02:30]} 17. Nxd3 {[%clk 0:02:25]}  a5 {[%clk 0:02:30]} 18. Rfe1 {[%clk 0:02:24]}  Nc6 {[%clk 0:02:19]} 19. Ne5 {[%clk 0:02:17]}  b4 {[%clk 0:02:11]} 20. Nxc6 {[%clk 0:02:10]}  Qxc6 {[%clk 0:02:12]} 21. axb4 {[%clk 0:02:04]}  axb4 {[%clk 0:02:13]} 22. c4 {[%clk 0:02:05]}  dxc4 {[%clk 0:02:09]} 23. Nxc4 {[%clk 0:02:06]}  Rfd8 {[%clk 0:02:05]} 24. Ne5 {[%clk 0:02:03]}  Qd5 {[%clk 0:02:04]} 25. Qg3 {[%clk 0:01:53]}  Rbc8 {[%clk 0:01:56]} 26. Nf3 {[%clk 0:01:50]}  Qb3 {[%clk 0:01:52]} 27. Qe5 {[%clk 0:01:38]}  h6 {[%clk 0:01:46]} 28. Qb5 {[%clk 0:01:23]}  Rb8 {[%clk 0:01:43]} 29. Qa6 {[%clk 0:01:21]}  Ra8 {[%clk 0:01:38]} 30. Qb7 {[%clk 0:01:21]}  Rdb8 {[%clk 0:01:36]} 31. Qc7 {[%clk 0:01:19]}  Nd5 {[%clk 0:01:36]} 32. Qd7 {[%clk 0:01:14]}  Nf4 {[%clk 0:01:27]} 33. Re4 {[%clk 0:01:13]}  Nxh3+ {[%clk 0:01:19]} 34. Kh2 {[%clk 0:00:53]}  Ng5 {[%clk 0:00:34]} 35. Rf4 {[%clk 0:00:52]}  Rd8 {[%clk 0:00:23]} 36. Qc7 {[%clk 0:00:52]}  Rac8 {[%clk 0:00:21]} 37. Qa7 {[%clk 0:00:50]}  Rf8 {[%clk 0:00:19]} 38. Ne5 {[%clk 0:00:41]}  Qxb2 {[%clk 0:00:19]} 39. Qb7 {[%clk 0:00:32]}  Qd2 {[%clk 0:00:17]} 40. Re3 {[%clk 0:00:29]}  Rb8 {[%clk 0:00:17]} 41. Qc7 {[%clk 0:00:28]}  Rbc8 {[%clk 0:00:17]} 42. Qb7 {[%clk 0:00:28]}  Rb8 {[%clk 0:00:17]} 43. Qa7 {[%clk 0:00:27]}  b3 {[%clk 0:00:18]} 44. Nxf7 {[%clk 0:00:12]}  Nxf7 {[%clk 0:00:16]} 45. Rxf7 {[%clk 0:00:11]}  Rxf7 {[%clk 0:00:08]} 46. Qxb8+ {[%clk 0:00:12]}  Kh7 {[%clk 0:00:08]} 47. Qxb3 {[%clk 0:00:13]}  Qxf2 {[%clk 0:00:08]} 48. Rg3 {[%clk 0:00:12]}  Qf5 {[%clk 0:00:06]} 49. Qe3 {[%clk 0:00:11]}  g5 {[%clk 0:00:04]} 50. Rf3 {[%clk 0:00:09]}  Qg6 {[%clk 0:00:04]} 51. Rh3 {[%clk 0:00:07]}  Re7 {[%clk 0:00:02]} 52. Qa3 {[%clk 0:00:07]}  Rg7 {[%clk 0:00:02]} 53. Qf8 {[%clk 0:00:07]}  g4 {[%clk 0:00:02]} 54. Rh4 {[%clk 0:00:05]}  g3+ {[%clk 0:00:02]} 55. Kh3 {[%clk 0:00:05]}  Qg5 {[%clk 0:00:02]} 56. Qf3 {[%clk 0:00:05]}  Qg6 {[%clk 0:00:02]} 57. Rg4 {[%clk 0:00:04]}  Qh5+ {[%clk 0:00:02]} 58. Kxg3 {[%clk 0:00:04]}  Rxg4+ {[%clk 0:00:01]} 59. Qxg4 {[%clk 0:00:05]}  Qd5 {[%clk 0:00:02]} 60. Qf4 {[%clk 0:00:05]}  Kg6 {[%clk 0:00:02]} 61. Kf2 {[%clk 0:00:05]}  Qf5 {[%clk 0:00:02]} 62. Kf3 {[%clk 0:00:05]}  h5 {[%clk 0:00:01]} 63. g4 {[%clk 0:00:04]}  hxg4+ {[%clk 0:00:01]} 64. Kg3 {[%clk 0:00:05]}  Kf6 {[%clk 0:00:02]} 65. Qxg4 {[%clk 0:00:04]}  Qxg4+ {[%clk 0:00:02]} 66. Kxg4 {[%clk 0:00:05]}  e5 {[%clk 0:00:03]} 67. dxe5+ {[%clk 0:00:06]}  Kxe5 {[%clk 0:00:04]} 1/2-1/2


[Site "https://www.chess.com"]

[Event "Titled Tuesday Blitz August 09 Late 2022"]
[White "Kosteniuk, Alexandra"]
[Black "Przybylski, Wojciech"]
[WhiteFideId "4128125"]
[BlackFideId "1117599"]
[WhiteElo "2469"]
[BlackElo "2133"]
[Result "1-0"]
[Round "04"]
[TimeControl "180+1"]
[Date "2022.08.09"]
[WhiteClock "0:01:36"]
[BlackClock "0:00:01"]

1. e4 {[%clk 0:03:00]}  c5 {[%clk 0:02:49]} 2. Nf3 {[%clk 0:03:00]}  d6 {[%clk 0:02:49]} 3. d4 {[%clk 0:03:00]}  cxd4 {[%clk 0:02:50]} 4. Qxd4 {[%clk 0:03:00]}  Nc6 {[%clk 0:02:46]} 5. Bb5 {[%clk 0:03:00]}  Bd7 {[%clk 0:02:46]} 6. Qd3 {[%clk 0:03:00]}  a6 {[%clk 0:02:22]} 7. Bxc6 {[%clk 0:02:57]}  Bxc6 {[%clk 0:02:22]} 8. Nc3 {[%clk 0:02:57]}  e6 {[%clk 0:02:21]} 9. Bg5 {[%clk 0:02:55]}  Qc7 {[%clk 0:02:18]} 10. O-O-O {[%clk 0:02:54]}  Nf6 {[%clk 0:02:04]} 11. Rhe1 {[%clk 0:02:50]}  Be7 {[%clk 0:02:03]} 12. Bxf6 {[%clk 0:02:49]}  gxf6 {[%clk 0:01:11]} 13. Nd4 {[%clk 0:02:48]}  O-O-O {[%clk 0:01:05]} 14. f4 {[%clk 0:02:45]}  Bd7 {[%clk 0:01:00]} 15. f5 {[%clk 0:02:42]}  Kb8 {[%clk 0:01:00]} 16. Kb1 {[%clk 0:02:39]}  Rhg8 {[%clk 0:00:58]} 17. Qh3 {[%clk 0:02:36]}  Rg7 {[%clk 0:00:48]} 18. g3 {[%clk 0:02:31]}  Rh8 {[%clk 0:00:41]} 19. fxe6 {[%clk 0:02:26]}  fxe6 {[%clk 0:00:40]} 20. Qh6 {[%clk 0:02:00]}  Rg6 {[%clk 0:00:39]} 21. Qh5 {[%clk 0:02:00]}  b5 {[%clk 0:00:19]} 22. Nce2 {[%clk 0:01:56]}  Qc5 {[%clk 0:00:19]} 23. Qh3 {[%clk 0:01:50]}  Qe5 {[%clk 0:00:16]} 24. Nf4 {[%clk 0:01:50]}  Bd8 {[%clk 0:00:06]} 25. Nxg6 {[%clk 0:01:49]}  Qc5 {[%clk 0:00:02]} 26. Nxh8 {[%clk 0:01:48]}  Ba5 {[%clk 0:00:02]} 27. Rf1 {[%clk 0:01:45]}  Kc8 {[%clk 0:00:02]} 28. Qxh7 {[%clk 0:01:43]}  e5 {[%clk 0:00:02]} 29. Nf5 {[%clk 0:01:42]}  Be6 {[%clk 0:00:02]} 30. Qe7 {[%clk 0:01:37]}  Bc7 {[%clk 0:00:01]} 31. Qxe6+ {[%clk 0:01:36]} 1-0


[Site "https://www.chess.com"]

[Event "Titled Tuesday Blitz August 09 Late 2022"]
[White "Lobanov, Sergei"]
[Black "Claverie, Christophe"]
[WhiteFideId "24183750"]
[BlackFideId "605514"]
[WhiteElo "2524"]
[BlackElo "2300"]
[Result "1-0"]
[Round "04"]
[TimeControl "180+1"]
[Date "2022.08.09"]
[WhiteClock "0:00:25"]
[BlackClock "0:00:08"]

1. Nf3 {[%clk 0:03:00]}  Nf6 {[%clk 0:02:56]} 2. b3 {[%clk 0:02:58]}  g6 {[%clk 0:02:57]} 3. Bb2 {[%clk 0:02:57]}  Bg7 {[%clk 0:02:56]} 4. c4 {[%clk 0:02:57]}  O-O {[%clk 0:02:56]} 5. g3 {[%clk 0:02:58]}  c6 {[%clk 0:02:55]} 6. Bg2 {[%clk 0:02:57]}  d5 {[%clk 0:02:55]} 7. O-O {[%clk 0:02:58]}  Re8 {[%clk 0:02:52]} 8. d4 {[%clk 0:02:53]}  Ne4 {[%clk 0:02:49]} 9. Nfd2 {[%clk 0:02:47]}  Nxd2 {[%clk 0:02:49]} 10. Nxd2 {[%clk 0:02:46]}  dxc4 {[%clk 0:02:43]} 11. Nxc4 {[%clk 0:02:44]}  Nd7 {[%clk 0:02:41]} 12. e4 {[%clk 0:02:43]}  Nb6 {[%clk 0:02:40]} 13. Ne5 {[%clk 0:02:36]}  Nd7 {[%clk 0:02:40]} 14. Nf3 {[%clk 0:02:25]}  c5 {[%clk 0:02:39]} 15. Rc1 {[%clk 0:02:21]}  cxd4 {[%clk 0:02:36]} 16. Bxd4 {[%clk 0:02:22]}  e5 {[%clk 0:02:29]} 17. Bb2 {[%clk 0:02:18]}  Qe7 {[%clk 0:02:28]} 18. Rc7 {[%clk 0:02:10]}  Qd8 {[%clk 0:01:43]} 19. Qc2 {[%clk 0:02:05]}  Nf8 {[%clk 0:01:20]} 20. Rd1 {[%clk 0:01:55]}  Bd7 {[%clk 0:01:20]} 21. Rxb7 {[%clk 0:01:32]}  Rc8 {[%clk 0:01:03]} 22. Qe2 {[%clk 0:01:30]}  h6 {[%clk 0:00:55]} 23. Rxa7 {[%clk 0:01:21]}  Rc7 {[%clk 0:00:47]} 24. Rxc7 {[%clk 0:01:15]}  Qxc7 {[%clk 0:00:48]} 25. h3 {[%clk 0:01:14]}  Ne6 {[%clk 0:00:45]} 26. Bxe5 {[%clk 0:01:03]}  Bxe5 {[%clk 0:00:40]} 27. Nxe5 {[%clk 0:01:04]}  Qxe5 {[%clk 0:00:39]} 28. Rxd7 {[%clk 0:01:04]}  h5 {[%clk 0:00:39]} 29. h4 {[%clk 0:00:58]}  Nc5 {[%clk 0:00:26]} 30. Rd1 {[%clk 0:00:42]}  Ne6 {[%clk 0:00:15]} 31. f4 {[%clk 0:00:36]}  Qa5 {[%clk 0:00:14]} 32. e5 {[%clk 0:00:31]}  Ng7 {[%clk 0:00:11]} 33. Rd7 {[%clk 0:00:27]}  Nf5 {[%clk 0:00:11]} 34. Kh2 {[%clk 0:00:26]}  Qb4 {[%clk 0:00:10]} 35. Qc4 {[%clk 0:00:24]}  Qf8 {[%clk 0:00:08]} 36. Rxf7 {[%clk 0:00:25]}  Qxf7 {[%clk 0:00:08]} 37. Bd5 {[%clk 0:00:25]} 1-0


[Site "https://www.chess.com"]